[Event "Titled Tuesday Blitz February 28 Early 2023"]
[White "Avazkhonov, Alikhon"]
[Black "Djokovic, Nebojsa"]
[WhiteFideId "14208504"]
[BlackFideId "938300"]
[WhiteElo "1739"]
[BlackElo "2578"]
[Result "1-0"]
[Round "11"]
[TimeControl "180+2"]
[Date "2023.02.28"]
[WhiteClock "0:00:10"]
[BlackClock "0:00:01"]

1. d4 {[%clk 0:03:00]}  e6 {[%clk 0:03:00]} 2. c4 {[%clk 0:03:01]}  Nf6 {[%clk 0:03:00]} 3. Nc3 {[%clk 0:03:01]}  Bb4 {[%clk 0:03:01]} 4. e3 {[%clk 0:03:02]}  O-O {[%clk 0:03:00]} 5. Bd2 {[%clk 0:03:02]}  b6 {[%clk 0:03:00]} 6. Nf3 {[%clk 0:03:01]}  Bb7 {[%clk 0:03:01]} 7. Bd3 {[%clk 0:03:02]}  a5 {[%clk 0:03:00]} 8. O-O {[%clk 0:03:01]}  Bxc3 {[%clk 0:03:00]} 9. Bxc3 {[%clk 0:03:01]}  Ne4 {[%clk 0:03:01]} 10. Bxe4 {[%clk 0:03:02]}  Bxe4 {[%clk 0:03:00]} 11. d5 {[%clk 0:03:02]}  exd5 {[%clk 0:02:14]} 12. Qd4 {[%clk 0:03:03]}  f6 {[%clk 0:02:08]} 13. cxd5 {[%clk 0:03:03]}  Bxf3 {[%clk 0:02:08]} 14. gxf3 {[%clk 0:03:03]}  d6 {[%clk 0:02:09]} 15. Kh1 {[%clk 0:03:00]}  Nd7 {[%clk 0:02:07]} 16. Rg1 {[%clk 0:03:01]}  Kh8 {[%clk 0:02:07]} 17. Rg3 {[%clk 0:03:01]}  Rf7 {[%clk 0:02:02]} 18. Rag1 {[%clk 0:03:02]}  Qe7 {[%clk 0:01:58]} 19. Qh4 {[%clk 0:02:54]}  Ne5 {[%clk 0:01:47]} 20. e4 {[%clk 0:02:22]}  Raf8 {[%clk 0:01:01]} 21. f4 {[%clk 0:02:18]}  Nd3 {[%clk 0:00:59]} 22. Re3 {[%clk 0:02:02]}  Nc5 {[%clk 0:00:57]} 23. Rge1 {[%clk 0:01:49]}  c6 {[%clk 0:00:50]} 24. dxc6 {[%clk 0:01:36]}  Qc7 {[%clk 0:00:49]} 25. Rh3 {[%clk 0:01:37]}  h6 {[%clk 0:00:48]} 26. Rg1 {[%clk 0:01:28]}  Nxe4 {[%clk 0:00:36]} 27. Rg6 {[%clk 0:00:51]}  Nxf2+ {[%clk 0:00:11]} 28. Qxf2 {[%clk 0:00:48]}  Qxc6+ {[%clk 0:00:11]} 29. Qg2 {[%clk 0:00:42]}  Qxg2+ {[%clk 0:00:10]} 30. Kxg2 {[%clk 0:00:43]}  Re8 {[%clk 0:00:11]} 31. Rd3 {[%clk 0:00:35]}  Rd7 {[%clk 0:00:08]} 32. Rgg3 {[%clk 0:00:30]}  d5 {[%clk 0:00:08]} 33. Rge3 {[%clk 0:00:27]}  Red8 {[%clk 0:00:02]} 34. Bd4 {[%clk 0:00:21]}  Kh7 {[%clk 0:00:03]} 35. Rc3 {[%clk 0:00:21]}  Rb8 {[%clk 0:00:02]} 36. Rc6 {[%clk 0:00:21]}  b5 {[%clk 0:00:03]} 37. f5 {[%clk 0:00:22]}  b4 {[%clk 0:00:03]} 38. Ra6 {[%clk 0:00:19]}  Rc7 {[%clk 0:00:01]} 39. Rxa5 {[%clk 0:00:15]}  Rc2+ {[%clk 0:00:02]} 40. Kg3 {[%clk 0:00:16]}  Rbc8 {[%clk 0:00:02]} 41. Ra7 {[%clk 0:00:14]}  R8c4 {[%clk 0:00:02]} 42. Bxf6 {[%clk 0:00:14]}  Kg8 {[%clk 0:00:02]} 43. Re8+ {[%clk 0:00:09]}  Kh7 {[%clk 0:00:01]} 44. Rxg7# {[%clk 0:00:10]} 1-0


[Site "https://www.chess.com"]

[Event "Titled Tuesday Blitz February 28 Early 2023"]
[White "Sarkar, Justin"]
[Black "Ilkhomi, Jaloliddin"]
[WhiteFideId "2010011"]
[BlackFideId "14700948"]
[WhiteElo "2189"]
[BlackElo "2045"]
[Result "1-0"]
[Round "11"]
[TimeControl "180+2"]
[Date "2023.02.28"]
[WhiteClock "0:01:36"]
[BlackClock "0:01:19"]

1. e4 {[%clk 0:02:54]}  c5 {[%clk 0:02:55]} 2. Nf3 {[%clk 0:02:54]}  e6 {[%clk 0:02:55]} 3. b4 {[%clk 0:02:52]}  b6 {[%clk 0:02:54]} 4. bxc5 {[%clk 0:02:49]}  bxc5 {[%clk 0:02:55]} 5. Nc3 {[%clk 0:02:45]}  Bb7 {[%clk 0:02:55]} 6. Rb1 {[%clk 0:02:43]}  Qc8 {[%clk 0:02:49]} 7. Be2 {[%clk 0:02:37]}  g6 {[%clk 0:02:48]} 8. O-O {[%clk 0:02:34]}  Bg7 {[%clk 0:02:48]} 9. Nb5 {[%clk 0:02:26]}  Qc6 {[%clk 0:02:46]} 10. e5 {[%clk 0:02:21]}  Bxe5 {[%clk 0:02:40]} 11. d4 {[%clk 0:02:03]}  cxd4 {[%clk 0:02:22]} 12. Nbxd4 {[%clk 0:02:00]}  Bxd4 {[%clk 0:02:11]} 13. Qxd4 {[%clk 0:01:58]}  f6 {[%clk 0:02:10]} 14. Ba3 {[%clk 0:01:50]}  e5 {[%clk 0:02:06]} 15. Qb4 {[%clk 0:01:47]}  d6 {[%clk 0:01:23]} 16. Bb5 {[%clk 0:01:43]}  Ne7 {[%clk 0:01:22]} 17. Bxc6+ {[%clk 0:01:40]}  Bxc6 {[%clk 0:01:23]} 18. Qxb8+ {[%clk 0:01:38]}  Rxb8 {[%clk 0:01:17]} 19. Rxb8+ {[%clk 0:01:37]}  Kd7 {[%clk 0:01:18]} 20. Rxh8 {[%clk 0:01:37]}  Nf5 {[%clk 0:01:19]} 21. Rxh7+ {[%clk 0:01:36]} 1-0


[Site "https://www.chess.com"]

[Event "Titled Tuesday Blitz February 28 Early 2023"]
[White "Starozhilov, Leonid"]
[Black "Delgado Rosas, Fatima Alexandra"]
[WhiteFideId "14106752"]
[BlackFideId "6603963"]
[WhiteElo "2414"]
[BlackElo "2348"]
[Result "1-0"]
[Round "11"]
[TimeControl "180+2"]
[Date "2023.02.28"]
[WhiteClock "0:00:40"]
[BlackClock "0:00:26"]

1. e4 {[%clk 0:03:00]}  c6 {[%clk 0:02:59]} 2. d4 {[%clk 0:02:57]}  d5 {[%clk 0:03:00]} 3. e5 {[%clk 0:02:57]}  c5 {[%clk 0:03:00]} 4. c3 {[%clk 0:02:55]}  Nc6 {[%clk 0:03:01]} 5. Be3 {[%clk 0:02:51]}  Bf5 {[%clk 0:02:54]} 6. Nf3 {[%clk 0:02:49]}  e6 {[%clk 0:02:54]} 7. a3 {[%clk 0:02:47]}  cxd4 {[%clk 0:02:50]} 8. cxd4 {[%clk 0:02:48]}  Nge7 {[%clk 0:02:49]} 9. Nc3 {[%clk 0:02:47]}  h6 {[%clk 0:02:44]} 10. Qb3 {[%clk 0:02:42]}  Qb6 {[%clk 0:02:40]} 11. Qxb6 {[%clk 0:02:41]}  axb6 {[%clk 0:02:41]} 12. Nb5 {[%clk 0:02:42]}  Kd7 {[%clk 0:02:32]} 13. Nd6 {[%clk 0:02:30]}  Bg6 {[%clk 0:02:24]} 14. Rc1 {[%clk 0:02:26]}  Nf5 {[%clk 0:02:22]} 15. Nxb7 {[%clk 0:02:24]}  Nxe3 {[%clk 0:02:16]} 16. fxe3 {[%clk 0:02:22]}  Rc8 {[%clk 0:02:14]} 17. Bb5 {[%clk 0:02:21]}  Rc7 {[%clk 0:02:09]} 18. Rxc6 {[%clk 0:02:02]}  Rxc6 {[%clk 0:02:10]} 19. Nd8 {[%clk 0:01:50]}  Kxd8 {[%clk 0:02:06]} 20. Bxc6 {[%clk 0:01:51]}  Be7 {[%clk 0:02:02]} 21. Kd2 {[%clk 0:01:50]}  Kc7 {[%clk 0:01:57]} 22. Rc1 {[%clk 0:01:50]}  Kb8 {[%clk 0:01:54]} 23. Bb5 {[%clk 0:01:50]}  Rc8 {[%clk 0:01:54]} 24. Rxc8+ {[%clk 0:01:50]}  Kxc8 {[%clk 0:01:55]} 25. Bd3 {[%clk 0:01:50]}  Bxd3 {[%clk 0:01:50]} 26. Kxd3 {[%clk 0:01:51]}  Kc7 {[%clk 0:01:49]} 27. e4 {[%clk 0:01:42]}  Kc6 {[%clk 0:01:46]} 28. Ne1 {[%clk 0:01:40]}  dxe4+ {[%clk 0:01:36]} 29. Kxe4 {[%clk 0:01:41]}  Kb5 {[%clk 0:01:37]} 30. Kd3 {[%clk 0:01:40]}  Ka4 {[%clk 0:01:37]} 31. Kc2 {[%clk 0:01:36]}  Bg5 {[%clk 0:01:31]} 32. Kc3 {[%clk 0:01:23]}  Be3 {[%clk 0:01:28]} 33. Nc2 {[%clk 0:01:23]}  Bg1 {[%clk 0:01:28]} 34. h3 {[%clk 0:01:22]}  Kb5 {[%clk 0:01:28]} 35. b3 {[%clk 0:01:21]}  Bf2 {[%clk 0:01:26]} 36. a4+ {[%clk 0:01:19]}  Ka5 {[%clk 0:01:17]} 37. Na3 {[%clk 0:01:13]}  Be1+ {[%clk 0:01:15]} 38. Kc4 {[%clk 0:01:13]}  f6 {[%clk 0:01:14]} 39. exf6 {[%clk 0:01:07]}  gxf6 {[%clk 0:01:15]} 40. g4 {[%clk 0:01:06]}  f5 {[%clk 0:01:03]} 41. gxf5 {[%clk 0:01:00]}  exf5 {[%clk 0:01:04]} 42. Nc2 {[%clk 0:00:58]}  Bh4 {[%clk 0:00:59]} 43. Nb4 {[%clk 0:00:56]}  f4 {[%clk 0:00:57]} 44. Nc6+ {[%clk 0:00:57]}  Ka6 {[%clk 0:00:56]} 45. Ne5 {[%clk 0:00:58]}  Bf6 {[%clk 0:00:52]} 46. Nf3 {[%clk 0:00:57]}  Kb7 {[%clk 0:00:53]} 47. Kb5 {[%clk 0:00:54]}  Be7 {[%clk 0:00:49]} 48. b4 {[%clk 0:00:53]}  Kc7 {[%clk 0:00:48]} 49. a5 {[%clk 0:00:53]}  bxa5 {[%clk 0:00:47]} 50. bxa5 {[%clk 0:00:54]}  Kb7 {[%clk 0:00:45]} 51. a6+ {[%clk 0:00:54]}  Kc7 {[%clk 0:00:45]} 52. d5 {[%clk 0:00:54]}  Bf8 {[%clk 0:00:44]} 53. Nd4 {[%clk 0:00:52]}  Kb8 {[%clk 0:00:39]} 54. Kb6 {[%clk 0:00:45]}  Bg7 {[%clk 0:00:35]} 55. a7+ {[%clk 0:00:40]}  Ka8 {[%clk 0:00:35]} 56. Nb5 {[%clk 0:00:39]}  Be5 {[%clk 0:00:29]} 57. d6 {[%clk 0:00:40]}  Bxd6 {[%clk 0:00:24]} 58. Nxd6 {[%clk 0:00:39]}  f3 {[%clk 0:00:25]} 59. Ne8 {[%clk 0:00:39]}  f2 {[%clk 0:00:26]} 60. Nc7# {[%clk 0:00:40]} 1-0


[Site "https://www.chess.com"]

[Event "Titled Tuesday Blitz February 28 Early 2023"]
[White "Berezin, Viktor"]
[Black "Chernomordik, Pavel"]
[WhiteFideId "14107872"]
[BlackFideId "2804530"]
[WhiteElo "2310"]
[BlackElo "2193"]
[Result "0-1"]
[Round "11"]
[TimeControl "180+2"]
[Date "2023.02.28"]
[WhiteClock "0:00:06"]
[BlackClock "0:00:19"]

1. d4 {[%clk 0:03:00]}  g6 {[%clk 0:02:58]} 2. Nf3 {[%clk 0:03:00]}  Bg7 {[%clk 0:02:57]} 3. g3 {[%clk 0:03:00]}  d6 {[%clk 0:02:56]} 4. Bg2 {[%clk 0:03:01]}  Nf6 {[%clk 0:02:56]} 5. O-O {[%clk 0:03:01]}  O-O {[%clk 0:02:56]} 6. a4 {[%clk 0:03:02]}  a5 {[%clk 0:02:48]} 7. Nc3 {[%clk 0:02:59]}  d5 {[%clk 0:02:45]} 8. Ne5 {[%clk 0:02:58]}  c6 {[%clk 0:02:41]} 9. Re1 {[%clk 0:02:57]}  Nfd7 {[%clk 0:02:39]} 10. Nxd7 {[%clk 0:02:54]}  Nxd7 {[%clk 0:02:35]} 11. e4 {[%clk 0:02:54]}  dxe4 {[%clk 0:02:34]} 12. Nxe4 {[%clk 0:02:55]}  Nf6 {[%clk 0:02:27]} 13. Nc5 {[%clk 0:02:45]}  Nd7 {[%clk 0:02:22]} 14. Nb3 {[%clk 0:02:40]}  Nb6 {[%clk 0:02:07]} 15. c3 {[%clk 0:02:38]}  Nd5 {[%clk 0:02:03]} 16. Nc5 {[%clk 0:02:33]}  b6 {[%clk 0:02:00]} 17. Nd3 {[%clk 0:02:32]}  Ba6 {[%clk 0:01:57]} 18. Ne5 {[%clk 0:02:27]}  Rc8 {[%clk 0:01:48]} 19. Qf3 {[%clk 0:02:22]}  e6 {[%clk 0:01:41]} 20. h4 {[%clk 0:02:13]}  c5 {[%clk 0:01:33]} 21. h5 {[%clk 0:01:45]}  cxd4 {[%clk 0:01:30]} 22. cxd4 {[%clk 0:01:43]}  Nb4 {[%clk 0:01:28]} 23. Rd1 {[%clk 0:01:15]}  Nc2 {[%clk 0:01:18]} 24. Qg4 {[%clk 0:01:15]}  Nxa1 {[%clk 0:01:15]} 25. hxg6 {[%clk 0:01:06]}  hxg6 {[%clk 0:01:12]} 26. Bg5 {[%clk 0:00:43]}  Bf6 {[%clk 0:01:07]} 27. Bxf6 {[%clk 0:00:27]}  Qxf6 {[%clk 0:01:07]} 28. Nd7 {[%clk 0:00:28]}  Qf5 {[%clk 0:00:57]} 29. Qxf5 {[%clk 0:00:26]}  gxf5 {[%clk 0:00:52]} 30. Nxf8 {[%clk 0:00:25]}  Nb3 {[%clk 0:00:46]} 31. Nd7 {[%clk 0:00:25]}  Be2 {[%clk 0:00:46]} 32. Re1 {[%clk 0:00:16]}  Nxd4 {[%clk 0:00:45]} 33. Nxb6 {[%clk 0:00:16]}  Rb8 {[%clk 0:00:44]} 34. Nd7 {[%clk 0:00:12]}  Rxb2 {[%clk 0:00:44]} 35. Ne5 {[%clk 0:00:10]}  f6 {[%clk 0:00:37]} 36. Nc6 {[%clk 0:00:10]}  Nf3+ {[%clk 0:00:33]} 37. Bxf3 {[%clk 0:00:10]}  Bxf3 {[%clk 0:00:33]} 38. Nd4 {[%clk 0:00:11]}  Bd5 {[%clk 0:00:26]} 39. Nxe6 {[%clk 0:00:09]}  Ra2 {[%clk 0:00:26]} 40. Nf4 {[%clk 0:00:09]}  Be4 {[%clk 0:00:25]} 41. Nh5 {[%clk 0:00:08]}  Kf7 {[%clk 0:00:25]} 42. Rc1 {[%clk 0:00:05]}  Rxa4 {[%clk 0:00:23]} 43. Nf4 {[%clk 0:00:06]}  Rb4 {[%clk 0:00:21]} 44. Rc7+ {[%clk 0:00:06]}  Ke8 {[%clk 0:00:21]} 45. Ra7 {[%clk 0:00:05]}  Rb1+ {[%clk 0:00:20]} 46. Kh2 {[%clk 0:00:06]}  Rh1# {[%clk 0:00:19]} 0-1


[Site "https://www.chess.com"]

[Event "Titled Tuesday Blitz February 28 Early 2023"]
[White "Janaszak, Dawid"]
[Black "Nur-Mukhametova, Alisa"]
[WhiteFideId "1119206"]
[BlackFideId "54117739"]
[WhiteElo "2220"]
[BlackElo "2007"]
[Result "1-0"]
[Round "11"]
[TimeControl "180+2"]
[Date "2023.02.28"]
[WhiteClock "0:00:45"]
[BlackClock "0:00:02"]

1. e4 {[%clk 0:03:00]}  e6 {[%clk 0:02:59]} 2. b3 {[%clk 0:03:00]}  d5 {[%clk 0:02:58]} 3. Bb2 {[%clk 0:03:00]}  dxe4 {[%clk 0:02:57]} 4. Nc3 {[%clk 0:03:00]}  Nf6 {[%clk 0:02:56]} 5. Qe2 {[%clk 0:03:01]}  Nbd7 {[%clk 0:02:41]} 6. g4 {[%clk 0:03:00]}  b6 {[%clk 0:02:22]} 7. Bg2 {[%clk 0:02:54]}  Bb7 {[%clk 0:02:22]} 8. g5 {[%clk 0:02:43]}  Nd5 {[%clk 0:02:21]} 9. Nxd5 {[%clk 0:02:33]}  exd5 {[%clk 0:02:17]} 10. h4 {[%clk 0:02:24]}  Qe7 {[%clk 0:02:09]} 11. O-O-O {[%clk 0:02:23]}  O-O-O {[%clk 0:02:08]} 12. Nh3 {[%clk 0:02:20]}  f5 {[%clk 0:02:03]} 13. Nf4 {[%clk 0:02:19]}  Rg8 {[%clk 0:01:49]} 14. h5 {[%clk 0:02:18]}  Ne5 {[%clk 0:01:39]} 15. Kb1 {[%clk 0:02:08]}  Qd6 {[%clk 0:01:30]} 16. d3 {[%clk 0:02:06]}  Nf3 {[%clk 0:01:07]} 17. dxe4 {[%clk 0:01:59]}  Qxf4 {[%clk 0:00:51]} 18. Bxf3 {[%clk 0:01:50]}  fxe4 {[%clk 0:00:51]} 19. Bg4+ {[%clk 0:01:43]}  Kb8 {[%clk 0:00:49]} 20. Be6 {[%clk 0:01:33]}  Rh8 {[%clk 0:00:46]} 21. Rhg1 {[%clk 0:01:29]}  Qd6 {[%clk 0:00:32]} 22. Qg4 {[%clk 0:01:26]}  h6 {[%clk 0:00:24]} 23. g6 {[%clk 0:01:22]}  Re8 {[%clk 0:00:20]} 24. Bf7 {[%clk 0:01:22]}  Rd8 {[%clk 0:00:19]} 25. c4 {[%clk 0:01:22]}  c6 {[%clk 0:00:13]} 26. Qf5 {[%clk 0:01:21]}  Ka8 {[%clk 0:00:12]} 27. Be5 {[%clk 0:01:20]}  Qd7 {[%clk 0:00:12]} 28. Be6 {[%clk 0:01:20]}  Qe7 {[%clk 0:00:12]} 29. cxd5 {[%clk 0:01:10]}  cxd5 {[%clk 0:00:12]} 30. Bb2 {[%clk 0:01:01]}  Qd6 {[%clk 0:00:06]} 31. Qf7 {[%clk 0:00:52]}  Be7 {[%clk 0:00:03]} 32. Bxg7 {[%clk 0:00:51]}  Rhg8 {[%clk 0:00:02]} 33. Bxh6 {[%clk 0:00:52]}  Qe5 {[%clk 0:00:01]} 34. f4 {[%clk 0:00:45]}  Rge8 {[%clk 0:00:02]} 35. fxe5 {[%clk 0:00:45]} 1-0


[Site "https://www.chess.com"]

[Event "Titled Tuesday Blitz February 28 Early 2023"]
[White "Belov, Alexei"]
[Black "Hoffmann, Asa"]
[WhiteFideId "4128206"]
[BlackFideId "2001470"]
[WhiteElo "2497"]
[BlackElo "2117"]
[Result "0-1"]
[Round "11"]
[TimeControl "180+2"]
[Date "2023.02.28"]
[WhiteClock "0:01:08"]
[BlackClock "0:01:29"]

1. e4 {[%clk 0:03:00]}  d6 {[%clk 0:02:59]} 2. d4 {[%clk 0:03:00]}  Nf6 {[%clk 0:02:58]} 3. Nc3 {[%clk 0:03:00]}  c6 {[%clk 0:02:58]} 4. Nf3 {[%clk 0:02:57]}  Bg4 {[%clk 0:02:55]} 5. h3 {[%clk 0:02:54]}  Bh5 {[%clk 0:02:54]} 6. Bc4 {[%clk 0:02:51]}  e6 {[%clk 0:02:54]} 7. a4 {[%clk 0:02:50]}  d5 {[%clk 0:02:54]} 8. Bd3 {[%clk 0:02:50]}  Bb4 {[%clk 0:02:52]} 9. e5 {[%clk 0:02:49]}  Ne4 {[%clk 0:02:52]} 10. Bd2 {[%clk 0:02:43]}  Nxd2 {[%clk 0:02:51]} 11. Qxd2 {[%clk 0:02:43]}  Bxf3 {[%clk 0:02:51]} 12. gxf3 {[%clk 0:02:42]}  Qa5 {[%clk 0:02:50]} 13. f4 {[%clk 0:02:39]}  g6 {[%clk 0:02:50]} 14. h4 {[%clk 0:02:38]}  h5 {[%clk 0:02:50]} 15. Ke2 {[%clk 0:02:25]}  c5 {[%clk 0:02:49]} 16. dxc5 {[%clk 0:02:23]}  Qxc5 {[%clk 0:02:47]} 17. Bb5+ {[%clk 0:02:14]}  Nc6 {[%clk 0:02:47]} 18. Qd3 {[%clk 0:01:59]}  Bxc3 {[%clk 0:02:45]} 19. Qxc3 {[%clk 0:01:56]}  Qxc3 {[%clk 0:02:44]} 20. bxc3 {[%clk 0:01:56]}  Rc8 {[%clk 0:02:44]} 21. a5 {[%clk 0:01:54]}  a6 {[%clk 0:02:43]} 22. Ba4 {[%clk 0:01:52]}  Ke7 {[%clk 0:02:43]} 23. Bxc6 {[%clk 0:01:45]}  Rxc6 {[%clk 0:02:43]} 24. Rhb1 {[%clk 0:01:44]}  Rb8 {[%clk 0:02:35]} 25. Ra3 {[%clk 0:01:42]}  Rc4 {[%clk 0:02:33]} 26. Rb4 {[%clk 0:01:41]}  Rxb4 {[%clk 0:02:29]} 27. cxb4 {[%clk 0:01:41]}  Rc8 {[%clk 0:02:29]} 28. Kd3 {[%clk 0:01:30]}  Rc4 {[%clk 0:02:28]} 29. Rc3 {[%clk 0:01:28]}  Rxb4 {[%clk 0:02:24]} 30. Rc7+ {[%clk 0:01:28]}  Kf8 {[%clk 0:02:24]} 31. c3 {[%clk 0:01:26]}  Rxf4 {[%clk 0:02:16]} 32. Rxb7 {[%clk 0:01:25]}  Rxh4 {[%clk 0:02:16]} 33. Ra7 {[%clk 0:01:25]}  Ra4 {[%clk 0:02:14]} 34. Rxa6 {[%clk 0:01:25]}  h4 {[%clk 0:02:13]} 35. Ke3 {[%clk 0:01:23]}  Rc4 {[%clk 0:02:08]} 36. Kf3 {[%clk 0:01:21]}  Rxc3+ {[%clk 0:02:08]} 37. Kg2 {[%clk 0:01:21]}  Kg7 {[%clk 0:02:03]} 38. Ra8 {[%clk 0:01:20]}  Ra3 {[%clk 0:02:02]} 39. a6 {[%clk 0:01:20]}  Kh6 {[%clk 0:02:02]} 40. a7 {[%clk 0:01:19]}  Kg5 {[%clk 0:02:02]} 41. Kh2 {[%clk 0:01:13]}  d4 {[%clk 0:01:48]} 42. f3 {[%clk 0:01:12]}  d3 {[%clk 0:01:47]} 43. Kh3 {[%clk 0:01:11]}  d2 {[%clk 0:01:43]} 44. Rd8 {[%clk 0:01:10]}  Rxf3+ {[%clk 0:01:30]} 45. Kg2 {[%clk 0:01:10]}  Ra3 {[%clk 0:01:30]} 46. Rxd2 {[%clk 0:01:08]}  Rxa7 {[%clk 0:01:29]} 0-1


[Site "https://www.chess.com"]

[Event "Titled Tuesday Blitz February 28 Early 2023"]
[White "Kavutskiy, Konstantin"]
[Black "Buscar, Michael"]
[WhiteFideId "2026384"]
[BlackFideId "2603616"]
[WhiteElo "2369"]
[BlackElo "2010"]
[Result "1-0"]
[Round "11"]
[TimeControl "180+2"]
[Date "2023.02.28"]
[WhiteClock "0:01:02"]
[BlackClock "0:00:51"]

1. d4 {[%clk 0:03:00]}  Nf6 {[%clk 0:02:58]} 2. Bg5 {[%clk 0:02:59]}  e6 {[%clk 0:02:58]} 3. Nd2 {[%clk 0:03:00]}  d6 {[%clk 0:02:59]} 4. e4 {[%clk 0:02:59]}  Be7 {[%clk 0:02:57]} 5. Bd3 {[%clk 0:02:59]}  e5 {[%clk 0:02:58]} 6. Ngf3 {[%clk 0:02:54]}  Bg4 {[%clk 0:02:49]} 7. h3 {[%clk 0:02:53]}  Bxf3 {[%clk 0:02:49]} 8. Nxf3 {[%clk 0:02:54]}  Nbd7 {[%clk 0:02:49]} 9. c3 {[%clk 0:02:52]}  c6 {[%clk 0:02:46]} 10. O-O {[%clk 0:02:51]}  O-O {[%clk 0:02:46]} 11. a4 {[%clk 0:02:49]}  a5 {[%clk 0:02:46]} 12. Qe2 {[%clk 0:02:48]}  Re8 {[%clk 0:02:44]} 13. Rad1 {[%clk 0:02:43]}  Qc8 {[%clk 0:02:43]} 14. dxe5 {[%clk 0:02:42]}  dxe5 {[%clk 0:02:43]} 15. Bc4 {[%clk 0:02:41]}  Qc7 {[%clk 0:02:36]} 16. Kh1 {[%clk 0:02:35]}  Nf8 {[%clk 0:02:34]} 17. Be3 {[%clk 0:02:26]}  Ng6 {[%clk 0:02:31]} 18. Bxf7+ {[%clk 0:02:19]}  Kxf7 {[%clk 0:02:27]} 19. Ng5+ {[%clk 0:02:18]}  Kg8 {[%clk 0:02:23]} 20. Qc4+ {[%clk 0:02:17]}  Nd5 {[%clk 0:02:21]} 21. exd5 {[%clk 0:02:11]}  Bxg5 {[%clk 0:02:21]} 22. dxc6+ {[%clk 0:02:02]}  Qf7 {[%clk 0:02:21]} 23. Qxf7+ {[%clk 0:02:00]}  Kxf7 {[%clk 0:02:21]} 24. cxb7 {[%clk 0:01:32]}  Rab8 {[%clk 0:02:16]} 25. Bxg5 {[%clk 0:01:32]}  Rxb7 {[%clk 0:02:16]} 26. Rd2 {[%clk 0:01:28]}  Reb8 {[%clk 0:02:16]} 27. Rfd1 {[%clk 0:01:21]}  Rxb2 {[%clk 0:02:15]} 28. Rd7+ {[%clk 0:01:21]}  Ke6 {[%clk 0:02:11]} 29. R1d6+ {[%clk 0:01:20]}  Kf5 {[%clk 0:02:12]} 30. Be3 {[%clk 0:01:19]}  Ra2 {[%clk 0:02:01]} 31. Rxg7 {[%clk 0:01:17]}  Rxa4 {[%clk 0:01:57]} 32. Rxh7 {[%clk 0:01:17]}  Nf4 {[%clk 0:01:57]} 33. f3 {[%clk 0:01:05]}  Ra2 {[%clk 0:00:51]} 34. g4+ {[%clk 0:01:02]} 1-0


[Site "https://www.chess.com"]

[Event "Titled Tuesday Blitz February 28 Early 2023"]
[White "Melikhov, Evgeny V."]
[Black "Womacka, Mathias"]
[WhiteFideId "4122046"]
[BlackFideId "4611390"]
[WhiteElo "2158"]
[BlackElo "2377"]
[Result "1/2-1/2"]
[Round "11"]
[TimeControl "180+2"]
[Date "2023.02.28"]
[WhiteClock "0:00:23"]
[BlackClock "0:00:51"]

1. d4 {[%clk 0:03:00]}  Nf6 {[%clk 0:02:59]} 2. c4 {[%clk 0:03:00]}  e6 {[%clk 0:02:59]} 3. Nc3 {[%clk 0:03:00]}  Bb4 {[%clk 0:02:58]} 4. Qc2 {[%clk 0:03:00]}  c5 {[%clk 0:02:57]} 5. dxc5 {[%clk 0:03:00]}  O-O {[%clk 0:02:55]} 6. a3 {[%clk 0:03:00]}  Bxc5 {[%clk 0:02:53]} 7. Nf3 {[%clk 0:03:00]}  b6 {[%clk 0:02:53]} 8. e3 {[%clk 0:02:56]}  Bb7 {[%clk 0:02:52]} 9. Be2 {[%clk 0:02:55]}  Be7 {[%clk 0:02:52]} 10. b3 {[%clk 0:02:55]}  d6 {[%clk 0:02:50]} 11. Bb2 {[%clk 0:02:55]}  Nbd7 {[%clk 0:02:49]} 12. g4 {[%clk 0:02:54]}  Nxg4 {[%clk 0:02:35]} 13. Rg1 {[%clk 0:02:54]}  Ngf6 {[%clk 0:02:35]} 14. O-O-O {[%clk 0:02:48]}  Nc5 {[%clk 0:02:27]} 15. h4 {[%clk 0:02:10]}  Nfe4 {[%clk 0:02:18]} 16. Nxe4 {[%clk 0:02:06]}  Bxe4 {[%clk 0:02:05]} 17. Rxg7+ {[%clk 0:02:03]}  Kh8 {[%clk 0:02:06]} 18. Rg4+ {[%clk 0:01:48]}  Bf6 {[%clk 0:02:02]} 19. Rxe4 {[%clk 0:01:47]}  Bxb2+ {[%clk 0:02:01]} 20. Qxb2+ {[%clk 0:01:43]}  e5 {[%clk 0:02:01]} 21. Rg4 {[%clk 0:01:42]}  Qf6 {[%clk 0:01:59]} 22. Rdg1 {[%clk 0:01:39]}  Rg8 {[%clk 0:01:52]} 23. Rxg8+ {[%clk 0:01:36]}  Rxg8 {[%clk 0:01:53]} 24. Rxg8+ {[%clk 0:01:36]}  Kxg8 {[%clk 0:01:54]} 25. Kb1 {[%clk 0:01:07]}  Qg6+ {[%clk 0:01:32]} 26. Ka2 {[%clk 0:01:06]}  Qg2 {[%clk 0:01:29]} 27. b4 {[%clk 0:00:46]}  Na4 {[%clk 0:01:24]} 28. Qd2 {[%clk 0:00:37]}  Qxf2 {[%clk 0:01:22]} 29. Kb3 {[%clk 0:00:37]}  b5 {[%clk 0:01:15]} 30. cxb5 {[%clk 0:00:36]}  Nb6 {[%clk 0:01:16]} 31. Ng5 {[%clk 0:00:35]}  d5 {[%clk 0:01:10]} 32. Qc2 {[%clk 0:00:27]}  Qxe3+ {[%clk 0:01:07]} 33. Ka2 {[%clk 0:00:24]}  e4 {[%clk 0:01:03]} 34. Bh5 {[%clk 0:00:24]}  Nc4 {[%clk 0:01:01]} 35. Bxf7+ {[%clk 0:00:23]}  Kg7 {[%clk 0:00:59]} 36. Bxd5 {[%clk 0:00:23]}  Qxa3+ {[%clk 0:00:57]} 37. Kb1 {[%clk 0:00:23]}  Qxb4+ {[%clk 0:00:56]} 38. Ka2 {[%clk 0:00:23]}  Qa3+ {[%clk 0:00:49]} 39. Kb1 {[%clk 0:00:23]}  Qb4+ {[%clk 0:00:50]} 40. Ka2 {[%clk 0:00:23]}  Qa3+ {[%clk 0:00:50]} 41. Kb1 {[%clk 0:00:23]}  Qb4+ {[%clk 0:00:51]} 1/2-1/2


[Site "https://www.chess.com"]